[Event "Titled Tuesday Blitz May 9 Early 2023"]
[White "Cramling Bellon, Anna"]
[Black "Zaichenko, Daria"]
[WhiteFideId "32009232"]
[BlackFideId "4197453"]
[WhiteElo "1976"]
[BlackElo "2039"]
[Result "0-1"]
[Round "10"]
[TimeControl "180+2"]
[Date "2023.05.09"]
[WhiteClock "0:00:00"]
[BlackClock "0:00:32"]

1. e3 {[%clk 0:03:00]}  e5 {[%clk 0:02:48]} 2. d3 {[%clk 0:03:00]}  d5 {[%clk 0:02:48]} 3. Ne2 {[%clk 0:03:00]}  c5 {[%clk 0:02:46]} 4. Nd2 {[%clk 0:02:57]}  Nc6 {[%clk 0:02:46]} 5. Ng3 {[%clk 0:02:54]}  f5 {[%clk 0:02:43]} 6. Nb3 {[%clk 0:02:52]}  Nf6 {[%clk 0:02:41]} 7. Be2 {[%clk 0:02:47]}  Bd6 {[%clk 0:02:40]} 8. O-O {[%clk 0:02:46]}  O-O {[%clk 0:02:40]} 9. c4 {[%clk 0:02:35]}  d4 {[%clk 0:02:23]} 10. exd4 {[%clk 0:02:13]}  Nxd4 {[%clk 0:02:21]} 11. Nxd4 {[%clk 0:01:50]}  cxd4 {[%clk 0:02:18]} 12. b4 {[%clk 0:01:12]}  Bxb4 {[%clk 0:02:09]} 13. Rb1 {[%clk 0:01:06]}  Bd6 {[%clk 0:02:05]} 14. Qb3 {[%clk 0:01:01]}  Kh8 {[%clk 0:02:01]} 15. Ba3 {[%clk 0:00:49]}  b6 {[%clk 0:01:49]} 16. Bf3 {[%clk 0:00:46]}  Rb8 {[%clk 0:01:49]} 17. Rfc1 {[%clk 0:00:38]}  Be6 {[%clk 0:01:44]} 18. Bxd6 {[%clk 0:00:27]}  Qxd6 {[%clk 0:01:44]} 19. Qb5 {[%clk 0:00:28]}  Qc5 {[%clk 0:01:39]} 20. Qxc5 {[%clk 0:00:19]}  bxc5 {[%clk 0:01:39]} 21. Rb5 {[%clk 0:00:20]}  Rxb5 {[%clk 0:01:25]} 22. cxb5 {[%clk 0:00:20]}  Rc8 {[%clk 0:01:25]} 23. a4 {[%clk 0:00:14]}  c4 {[%clk 0:01:25]} 24. dxc4 {[%clk 0:00:10]}  Rxc4 {[%clk 0:01:25]} 25. Rxc4 {[%clk 0:00:10]}  Bxc4 {[%clk 0:01:25]} 26. Nxf5 {[%clk 0:00:10]}  e4 {[%clk 0:01:18]} 27. Bd1 {[%clk 0:00:10]}  d3 {[%clk 0:01:18]} 28. Ne3 {[%clk 0:00:06]}  Ba2 {[%clk 0:01:11]} 29. f3 {[%clk 0:00:06]}  Bb1 {[%clk 0:00:57]} 30. a5 {[%clk 0:00:05]}  d2 {[%clk 0:00:49]} 31. b6 {[%clk 0:00:04]}  axb6 {[%clk 0:00:50]} 32. axb6 {[%clk 0:00:04]}  Nd7 {[%clk 0:00:50]} 33. b7 {[%clk 0:00:03]}  Bd3 {[%clk 0:00:46]} 34. Kf2 {[%clk 0:00:03]}  Ba6 {[%clk 0:00:46]} 35. fxe4 {[%clk 0:00:03]}  Bxb7 {[%clk 0:00:46]} 36. Nd5 {[%clk 0:00:02]}  Nf6 {[%clk 0:00:43]} 37. Nxf6 {[%clk 0:00:01]}  gxf6 {[%clk 0:00:43]} 38. Ke3 {[%clk 0:00:02]}  Kg7 {[%clk 0:00:42]} 39. g3 {[%clk 0:00:02]}  Kg6 {[%clk 0:00:39]} 40. Bc2 {[%clk 0:00:02]}  Kg5 {[%clk 0:00:37]} 41. Kxd2 {[%clk 0:00:02]}  Kg4 {[%clk 0:00:38]} 42. Ke3 {[%clk 0:00:02]}  Kh3 {[%clk 0:00:35]} 43. Kf4 {[%clk 0:00:02]}  Bc8 {[%clk 0:00:36]} 44. g4 {[%clk 0:00:01]}  Bxg4 {[%clk 0:00:34]} 45. Bd3 {[%clk 0:00:01]}  h5 {[%clk 0:00:32]} 46. Bf1+ {[%clk 0:00:00]}  Kxh2 {[%clk 0:00:32]} 0-1


[Site "https://www.chess.com"]

[Event "Titled Tuesday Blitz May 9 Early 2023"]
[White "Rodriguez Santiago, Jaime"]
[Black "Ismayilova, Khanim"]
[WhiteFideId "3100898"]
[BlackFideId "13429019"]
[WhiteElo "2025"]
[BlackElo "1633"]
[Result "1-0"]
[Round "10"]
[TimeControl "180+2"]
[Date "2023.05.09"]
[WhiteClock "0:00:26"]
[BlackClock "0:00:06"]

1. c4 {[%clk 0:02:56]}  e6 {[%clk 0:02:59]} 2. Nf3 {[%clk 0:02:54]}  d5 {[%clk 0:02:59]} 3. g3 {[%clk 0:02:55]}  Nf6 {[%clk 0:02:57]} 4. Bg2 {[%clk 0:02:55]}  Be7 {[%clk 0:02:55]} 5. O-O {[%clk 0:02:56]}  O-O {[%clk 0:02:54]} 6. b3 {[%clk 0:02:56]}  c5 {[%clk 0:02:47]} 7. e3 {[%clk 0:02:54]}  Nc6 {[%clk 0:02:47]} 8. Bb2 {[%clk 0:02:54]}  b6 {[%clk 0:02:43]} 9. Qe2 {[%clk 0:02:53]}  Ba6 {[%clk 0:02:43]} 10. d3 {[%clk 0:02:52]}  Rc8 {[%clk 0:02:42]} 11. Nc3 {[%clk 0:02:52]}  Bb7 {[%clk 0:02:42]} 12. Rad1 {[%clk 0:02:51]}  d4 {[%clk 0:02:37]} 13. exd4 {[%clk 0:02:50]}  Nxd4 {[%clk 0:02:36]} 14. Nxd4 {[%clk 0:02:50]}  Bxg2 {[%clk 0:02:36]} 15. Kxg2 {[%clk 0:02:51]}  cxd4 {[%clk 0:02:36]} 16. Ne4 {[%clk 0:02:50]}  Nxe4 {[%clk 0:02:33]} 17. dxe4 {[%clk 0:02:50]}  e5 {[%clk 0:02:33]} 18. f4 {[%clk 0:02:50]}  f6 {[%clk 0:02:33]} 19. Rd3 {[%clk 0:02:45]}  Bc5 {[%clk 0:02:22]} 20. f5 {[%clk 0:02:44]}  Qd7 {[%clk 0:02:15]} 21. g4 {[%clk 0:02:44]}  b5 {[%clk 0:02:15]} 22. cxb5 {[%clk 0:02:19]}  Qxb5 {[%clk 0:02:13]} 23. h4 {[%clk 0:02:18]}  Bb4 {[%clk 0:01:59]} 24. Rf2 {[%clk 0:02:13]}  Qa6 {[%clk 0:01:46]} 25. a4 {[%clk 0:02:05]}  Rc7 {[%clk 0:01:19]} 26. g5 {[%clk 0:02:03]}  Kh8 {[%clk 0:01:18]} 27. gxf6 {[%clk 0:01:48]}  gxf6 {[%clk 0:01:12]} 28. Kh3 {[%clk 0:01:43]}  Qb7 {[%clk 0:00:56]} 29. Rg2 {[%clk 0:01:40]}  Rg7 {[%clk 0:00:56]} 30. Rdg3 {[%clk 0:01:36]}  Rfg8 {[%clk 0:00:54]} 31. Rxg7 {[%clk 0:01:32]}  Rxg7 {[%clk 0:00:54]} 32. Rxg7 {[%clk 0:01:31]}  Kxg7 {[%clk 0:00:45]} 33. Bc1 {[%clk 0:01:18]}  Qc6 {[%clk 0:00:26]} 34. Qg4+ {[%clk 0:01:13]}  Kh8 {[%clk 0:00:24]} 35. Bh6 {[%clk 0:01:10]}  Qc3+ {[%clk 0:00:23]} 36. Kh2 {[%clk 0:01:10]}  Qc2+ {[%clk 0:00:22]} 37. Kh1 {[%clk 0:01:07]}  Qb1+ {[%clk 0:00:21]} 38. Kg2 {[%clk 0:01:06]}  Qc2+ {[%clk 0:00:20]} 39. Kh1 {[%clk 0:01:03]}  Qb1+ {[%clk 0:00:20]} 40. Kh2 {[%clk 0:01:04]}  Qc2+ {[%clk 0:00:20]} 41. Qg2 {[%clk 0:01:04]}  d3 {[%clk 0:00:07]} 42. Kg1 {[%clk 0:00:43]}  Bc5+ {[%clk 0:00:03]} 43. Kh2 {[%clk 0:00:41]}  Qxg2+ {[%clk 0:00:03]} 44. Kxg2 {[%clk 0:00:41]}  Kg8 {[%clk 0:00:03]} 45. Bd2 {[%clk 0:00:41]}  Kf7 {[%clk 0:00:03]} 46. Kf3 {[%clk 0:00:41]}  Ke7 {[%clk 0:00:04]} 47. b4 {[%clk 0:00:38]}  Bd4 {[%clk 0:00:03]} 48. Be3 {[%clk 0:00:34]}  Kd7 {[%clk 0:00:02]} 49. Bxd4 {[%clk 0:00:33]}  exd4 {[%clk 0:00:03]} 50. b5 {[%clk 0:00:30]}  Kd6 {[%clk 0:00:03]} 51. a5 {[%clk 0:00:30]}  Kc5 {[%clk 0:00:03]} 52. b6 {[%clk 0:00:30]}  axb6 {[%clk 0:00:02]} 53. a6 {[%clk 0:00:31]}  Kc6 {[%clk 0:00:02]} 54. e5 {[%clk 0:00:30]}  Kc5 {[%clk 0:00:03]} 55. a7 {[%clk 0:00:27]}  Kc4 {[%clk 0:00:04]} 56. a8=Q {[%clk 0:00:28]}  Kc3 {[%clk 0:00:04]} 57. Qc6+ {[%clk 0:00:27]}  Kb2 {[%clk 0:00:04]} 58. exf6 {[%clk 0:00:25]}  d2 {[%clk 0:00:05]} 59. Ke2 {[%clk 0:00:25]}  d3+ {[%clk 0:00:05]} 60. Kxd2 {[%clk 0:00:25]}  b5 {[%clk 0:00:05]} 61. Qc3+ {[%clk 0:00:25]}  Ka2 {[%clk 0:00:05]} 62. Qxd3 {[%clk 0:00:26]}  h5 {[%clk 0:00:05]} 63. Qxb5 {[%clk 0:00:26]}  Ka3 {[%clk 0:00:05]} 64. Kc3 {[%clk 0:00:26]}  Ka2 {[%clk 0:00:06]} 65. Qb2# {[%clk 0:00:26]} 1-0


[Site "https://www.chess.com"]

[Event "Titled Tuesday Blitz May 9 Early 2023"]
[White "Aung Thant Zin"]
[Black "Sadovsky, Artem"]
[WhiteFideId "13000063"]
[BlackFideId "4155840"]
[WhiteElo "2278"]
[BlackElo "2314"]
[Result "0-1"]
[Round "10"]
[TimeControl "180+2"]
[Date "2023.05.09"]
[WhiteClock "0:00:51"]
[BlackClock "0:01:13"]

1. e4 {[%clk 0:02:41]}  d5 {[%clk 0:02:27]} 2. exd5 {[%clk 0:02:40]}  Qxd5 {[%clk 0:02:21]} 3. Nc3 {[%clk 0:02:39]}  Qd8 {[%clk 0:02:20]} 4. g3 {[%clk 0:02:39]}  c6 {[%clk 0:02:19]} 5. Bg2 {[%clk 0:02:40]}  Nf6 {[%clk 0:02:19]} 6. Nge2 {[%clk 0:02:40]}  e5 {[%clk 0:02:18]} 7. a4 {[%clk 0:02:39]}  Bc5 {[%clk 0:02:18]} 8. O-O {[%clk 0:02:38]}  O-O {[%clk 0:02:18]} 9. d3 {[%clk 0:02:31]}  h6 {[%clk 0:02:18]} 10. a5 {[%clk 0:02:20]}  Bg4 {[%clk 0:02:06]} 11. h3 {[%clk 0:02:13]}  Bf5 {[%clk 0:02:05]} 12. g4 {[%clk 0:02:11]}  Bg6 {[%clk 0:02:04]} 13. Ng3 {[%clk 0:02:11]}  Nbd7 {[%clk 0:01:57]} 14. Nce4 {[%clk 0:02:07]}  Nxe4 {[%clk 0:01:54]} 15. dxe4 {[%clk 0:02:03]}  Nf6 {[%clk 0:01:42]} 16. Qe2 {[%clk 0:02:00]}  Qc7 {[%clk 0:01:36]} 17. a6 {[%clk 0:01:58]}  b5 {[%clk 0:01:26]} 18. Be3 {[%clk 0:01:55]}  Nd7 {[%clk 0:01:23]} 19. Rfd1 {[%clk 0:01:51]}  Bxe3 {[%clk 0:01:23]} 20. Qxe3 {[%clk 0:01:49]}  Rfd8 {[%clk 0:01:24]} 21. Nf5 {[%clk 0:01:30]}  Bxf5 {[%clk 0:01:22]} 22. exf5 {[%clk 0:01:29]}  Rac8 {[%clk 0:01:21]} 23. b4 {[%clk 0:01:20]}  Qb6 {[%clk 0:01:21]} 24. Qe2 {[%clk 0:01:06]}  Nf6 {[%clk 0:01:18]} 25. Qxe5 {[%clk 0:01:02]}  Re8 {[%clk 0:01:15]} 26. Qc3 {[%clk 0:00:54]}  Re2 {[%clk 0:01:14]} 27. Rd2 {[%clk 0:00:51]}  Qxf2+ {[%clk 0:01:13]} 0-1


[Site "https://www.chess.com"]

[Event "Titled Tuesday Blitz May 9 Early 2023"]
[White "Butti, Enrique"]
[Black "Panico, Nick"]
[WhiteFideId "3700470"]
[BlackFideId "2026724"]
[WhiteElo "2080"]
[BlackElo "1982"]
[Result "1/2-1/2"]
[Round "10"]
[TimeControl "180+2"]
[Date "2023.05.09"]
[WhiteClock "0:00:18"]
[BlackClock "0:01:01"]

1. d4 {[%clk 0:02:59]}  f5 {[%clk 0:02:59]} 2. Nf3 {[%clk 0:02:58]}  Nf6 {[%clk 0:03:00]} 3. g3 {[%clk 0:02:56]}  g6 {[%clk 0:02:59]} 4. Bg2 {[%clk 0:02:55]}  Bg7 {[%clk 0:03:00]} 5. O-O {[%clk 0:02:56]}  O-O {[%clk 0:03:01]} 6. c4 {[%clk 0:02:54]}  d6 {[%clk 0:03:01]} 7. Nc3 {[%clk 0:02:54]}  Nc6 {[%clk 0:03:01]} 8. d5 {[%clk 0:02:50]}  Ne5 {[%clk 0:03:01]} 9. Nd2 {[%clk 0:02:49]}  e6 {[%clk 0:02:50]} 10. Qc2 {[%clk 0:02:43]}  exd5 {[%clk 0:02:47]} 11. cxd5 {[%clk 0:02:42]}  Bd7 {[%clk 0:02:43]} 12. b3 {[%clk 0:02:38]}  c6 {[%clk 0:02:31]} 13. Bb2 {[%clk 0:02:28]}  Rc8 {[%clk 0:02:31]} 14. dxc6 {[%clk 0:02:23]}  bxc6 {[%clk 0:02:29]} 15. Rad1 {[%clk 0:02:14]}  Qe7 {[%clk 0:02:26]} 16. e4 {[%clk 0:02:03]}  fxe4 {[%clk 0:02:25]} 17. Ncxe4 {[%clk 0:02:01]}  Nxe4 {[%clk 0:02:23]} 18. Nxe4 {[%clk 0:02:00]}  d5 {[%clk 0:02:21]} 19. Nc5 {[%clk 0:01:58]}  Bg4 {[%clk 0:02:13]} 20. Rde1 {[%clk 0:01:47]}  Qd6 {[%clk 0:02:04]} 21. f4 {[%clk 0:01:46]}  Nd7 {[%clk 0:01:59]} 22. Bxg7 {[%clk 0:01:41]}  Kxg7 {[%clk 0:01:59]} 23. Nxd7 {[%clk 0:01:38]}  Qxd7 {[%clk 0:01:59]} 24. Qc5 {[%clk 0:01:34]}  Rfe8 {[%clk 0:01:54]} 25. Re5 {[%clk 0:01:22]}  Rxe5 {[%clk 0:01:47]} 26. fxe5 {[%clk 0:01:21]}  Re8 {[%clk 0:01:46]} 27. Qd4 {[%clk 0:01:10]}  Qe6 {[%clk 0:01:45]} 28. Re1 {[%clk 0:01:06]}  Re7 {[%clk 0:01:34]} 29. b4 {[%clk 0:01:05]}  h5 {[%clk 0:01:30]} 30. a4 {[%clk 0:00:59]}  Bf5 {[%clk 0:01:29]} 31. b5 {[%clk 0:00:56]}  cxb5 {[%clk 0:01:21]} 32. axb5 {[%clk 0:00:55]}  Be4 {[%clk 0:01:13]} 33. Bxe4 {[%clk 0:00:43]}  dxe4 {[%clk 0:01:14]} 34. Rxe4 {[%clk 0:00:42]}  Rb7 {[%clk 0:01:11]} 35. Qc5 {[%clk 0:00:40]}  Qb6 {[%clk 0:01:09]} 36. Rc4 {[%clk 0:00:33]}  Qxb5 {[%clk 0:01:02]} 37. Qxb5 {[%clk 0:00:27]}  Rxb5 {[%clk 0:01:03]} 38. Rc7+ {[%clk 0:00:27]}  Kh6 {[%clk 0:01:03]} 39. e6 {[%clk 0:00:26]}  Re5 {[%clk 0:01:02]} 40. e7 {[%clk 0:00:26]}  a5 {[%clk 0:01:02]} 41. Ra7 {[%clk 0:00:24]}  a4 {[%clk 0:01:02]} 42. Rxa4 {[%clk 0:00:20]}  Rxe7 {[%clk 0:01:02]} 43. Ra2 {[%clk 0:00:18]}  Re6 {[%clk 0:01:01]} 1/2-1/2


[Site "https://www.chess.com"]

[Event "Titled Tuesday Blitz May 9 Early 2023"]
[White "Necula, Iulian"]
[Black "Pein, Jonathan"]
[WhiteFideId "1232380"]
[BlackFideId "417092"]
[WhiteElo "1790"]
[BlackElo "2151"]
[Result "1-0"]
[Round "10"]
[TimeControl "180+2"]
[Date "2023.05.09"]
[WhiteClock "0:01:43"]
[BlackClock "0:01:50"]

1. d4 {[%clk 0:03:00]}  d5 {[%clk 0:02:59]} 2. Nc3 {[%clk 0:03:01]}  a6 {[%clk 0:02:49]} 3. Bf4 {[%clk 0:03:00]}  Nf6 {[%clk 0:02:48]} 4. e3 {[%clk 0:02:59]}  Bf5 {[%clk 0:02:48]} 5. f3 {[%clk 0:02:59]}  h5 {[%clk 0:02:48]} 6. Bd3 {[%clk 0:02:55]}  Bxd3 {[%clk 0:02:48]} 7. cxd3 {[%clk 0:02:56]}  Nc6 {[%clk 0:02:49]} 8. a3 {[%clk 0:02:55]}  e6 {[%clk 0:02:47]} 9. Qb3 {[%clk 0:02:53]}  Qd7 {[%clk 0:02:44]} 10. Rc1 {[%clk 0:02:51]}  Bd6 {[%clk 0:02:40]} 11. Nge2 {[%clk 0:02:49]}  h4 {[%clk 0:02:33]} 12. Kd2 {[%clk 0:02:43]}  Na5 {[%clk 0:02:25]} 13. Qc2 {[%clk 0:02:28]}  Rc8 {[%clk 0:02:18]} 14. b4 {[%clk 0:02:27]}  Nc6 {[%clk 0:02:14]} 15. Na4 {[%clk 0:02:24]}  e5 {[%clk 0:02:08]} 16. Bg5 {[%clk 0:02:14]}  exd4 {[%clk 0:02:07]} 17. exd4 {[%clk 0:02:13]}  Qf5 {[%clk 0:02:03]} 18. Bxf6 {[%clk 0:02:03]}  Qxf6 {[%clk 0:02:02]} 19. Rce1 {[%clk 0:01:56]}  Nxd4 {[%clk 0:01:51]} 20. Nxd4+ {[%clk 0:01:56]}  Kd7 {[%clk 0:01:51]} 21. Nc5+ {[%clk 0:01:47]}  Kd8 {[%clk 0:01:50]} 22. Nxb7+ {[%clk 0:01:45]}  Kd7 {[%clk 0:01:50]} 23. Qc6# {[%clk 0:01:43]} 1-0


[Site "https://www.chess.com"]

[Event "Titled Tuesday Blitz May 9 Early 2023"]
[White "Jesusesmifuerza"]
[Black "Hercegovac, Neven"]
[BlackFideId "2839135"]
[WhiteElo "2110"]
[BlackElo "2075"]
[Result "0-1"]
[Round "10"]
[TimeControl "180+2"]
[Date "2023.05.09"]
[WhiteClock "0:00:00"]
[BlackClock "0:00:17"]

1. d4 {[%clk 0:03:00]}  d5 {[%clk 0:02:59]} 2. Nc3 {[%clk 0:03:00]}  Nf6 {[%clk 0:02:58]} 3. Bf4 {[%clk 0:02:58]}  e6 {[%clk 0:02:52]} 4. Nb5 {[%clk 0:02:57]}  Na6 {[%clk 0:02:49]} 5. e3 {[%clk 0:02:58]}  Be7 {[%clk 0:02:46]} 6. Nf3 {[%clk 0:02:56]}  O-O {[%clk 0:02:43]} 7. h4 {[%clk 0:02:56]}  c6 {[%clk 0:02:24]} 8. Nc3 {[%clk 0:02:55]}  c5 {[%clk 0:02:11]} 9. h5 {[%clk 0:02:52]}  h6 {[%clk 0:02:05]} 10. g4 {[%clk 0:02:44]}  Nh7 {[%clk 0:01:57]} 11. Bxa6 {[%clk 0:02:22]}  bxa6 {[%clk 0:01:55]} 12. dxc5 {[%clk 0:02:22]}  Ng5 {[%clk 0:01:49]} 13. Nxg5 {[%clk 0:02:11]}  Bxg5 {[%clk 0:01:49]} 14. Bd6 {[%clk 0:01:54]}  Be7 {[%clk 0:01:48]} 15. e4 {[%clk 0:01:51]}  Bxd6 {[%clk 0:01:47]} 16. cxd6 {[%clk 0:01:49]}  Qxd6 {[%clk 0:01:48]} 17. exd5 {[%clk 0:01:48]}  exd5 {[%clk 0:01:48]} 18. Qd4 {[%clk 0:01:19]}  Re8+ {[%clk 0:01:46]} 19. Kd2 {[%clk 0:01:18]}  Rb8 {[%clk 0:01:41]} 20. Rhe1 {[%clk 0:00:59]}  Be6 {[%clk 0:01:41]} 21. Rad1 {[%clk 0:00:44]}  Rxb2 {[%clk 0:01:39]} 22. Nxd5 {[%clk 0:00:34]}  Rb6 {[%clk 0:01:01]} 23. Kc1 {[%clk 0:00:26]}  Qa3+ {[%clk 0:00:58]} 24. Kd2 {[%clk 0:00:24]}  Rd6 {[%clk 0:00:48]} 25. c4 {[%clk 0:00:18]}  Qxa2+ {[%clk 0:00:45]} 26. Kc3 {[%clk 0:00:17]}  Rb8 {[%clk 0:00:44]} 27. Nf6+ {[%clk 0:00:08]}  gxf6 {[%clk 0:00:43]} 28. Qxd6 {[%clk 0:00:09]}  Qxc4+ {[%clk 0:00:39]} 29. Kd2 {[%clk 0:00:08]}  Rb2+ {[%clk 0:00:40]} 30. Ke3 {[%clk 0:00:08]}  Rb3+ {[%clk 0:00:19]} 31. Kd2 {[%clk 0:00:05]}  Qc3+ {[%clk 0:00:18]} 32. Ke2 {[%clk 0:00:00]}  Bc4+ {[%clk 0:00:17]} 0-1


[Site "https://www.chess.com"]

[Event "Titled Tuesday Blitz May 9 Early 2023"]
[White "Ivic, Velimir"]
[Black "Shimanov, Aleksandr"]
[WhiteFideId "950122"]
[BlackFideId "4198603"]
[WhiteElo "2563"]
[BlackElo "2631"]
[Result "1-0"]
[Round "11"]
[TimeControl "180+2"]
[Date "2023.05.09"]
[WhiteClock "0:00:05"]
[BlackClock "0:00:00"]

1. e4 {[%clk 0:03:00]}  d5 {[%clk 0:02:56]} 2. exd5 {[%clk 0:03:00]}  Qxd5 {[%clk 0:02:57]} 3. Nc3 {[%clk 0:03:01]}  Qe5+ {[%clk 0:02:58]} 4. Be2 {[%clk 0:02:55]}  Bg4 {[%clk 0:02:58]} 5. d4 {[%clk 0:02:54]}  Bxe2 {[%clk 0:02:59]} 6. Ngxe2 {[%clk 0:02:55]}  Qa5 {[%clk 0:02:59]} 7. b4 {[%clk 0:02:48]}  Qh5 {[%clk 0:02:59]} 8. Qd3 {[%clk 0:02:34]}  e6 {[%clk 0:02:58]} 9. Nf4 {[%clk 0:02:31]}  Qf5 {[%clk 0:02:57]} 10. Qxf5 {[%clk 0:02:29]}  exf5 {[%clk 0:02:58]} 11. Nfd5 {[%clk 0:02:23]}  Kd7 {[%clk 0:02:54]} 12. b5 {[%clk 0:02:12]}  Bd6 {[%clk 0:02:32]} 13. O-O {[%clk 0:02:08]}  c6 {[%clk 0:02:24]} 14. bxc6+ {[%clk 0:01:56]}  Nxc6 {[%clk 0:02:25]} 15. Rb1 {[%clk 0:01:56]}  Rb8 {[%clk 0:02:25]} 16. Nb5 {[%clk 0:01:54]}  Nge7 {[%clk 0:02:03]} 17. Nxe7 {[%clk 0:01:12]}  Bxe7 {[%clk 0:02:00]} 18. Bf4 {[%clk 0:01:09]}  Ra8 {[%clk 0:01:51]} 19. c4 {[%clk 0:00:44]}  g5 {[%clk 0:01:26]} 20. Bd2 {[%clk 0:00:43]}  b6 {[%clk 0:01:17]} 21. c5 {[%clk 0:00:41]}  a6 {[%clk 0:01:10]} 22. Nc3 {[%clk 0:00:39]}  bxc5 {[%clk 0:01:00]} 23. dxc5 {[%clk 0:00:39]}  Rhd8 {[%clk 0:00:51]} 24. Nd5 {[%clk 0:00:37]}  Rab8 {[%clk 0:00:48]} 25. Nxe7 {[%clk 0:00:37]}  Kxe7 {[%clk 0:00:38]} 26. Bxg5+ {[%clk 0:00:36]}  f6 {[%clk 0:00:38]} 27. Bf4 {[%clk 0:00:25]}  Rb5 {[%clk 0:00:38]} 28. Bd6+ {[%clk 0:00:23]}  Kf7 {[%clk 0:00:38]} 29. a4 {[%clk 0:00:23]}  Rxb1 {[%clk 0:00:25]} 30. Rxb1 {[%clk 0:00:24]}  a5 {[%clk 0:00:20]} 31. Rb6 {[%clk 0:00:19]}  Rc8 {[%clk 0:00:14]} 32. g3 {[%clk 0:00:19]}  Ke6 {[%clk 0:00:14]} 33. Kg2 {[%clk 0:00:18]}  Kd5 {[%clk 0:00:13]} 34. Kf3 {[%clk 0:00:17]}  Re8 {[%clk 0:00:13]} 35. Rb7 {[%clk 0:00:14]}  Re4 {[%clk 0:00:05]} 36. Rxh7 {[%clk 0:00:10]}  Rxa4 {[%clk 0:00:05]} 37. h4 {[%clk 0:00:10]}  Ra1 {[%clk 0:00:04]} 38. h5 {[%clk 0:00:11]}  a4 {[%clk 0:00:05]} 39. Rh8 {[%clk 0:00:05]}  a3 {[%clk 0:00:03]} 40. Ra8 {[%clk 0:00:04]}  Rh1 {[%clk 0:00:02]} 41. Rxa3 {[%clk 0:00:04]}  Rxh5 {[%clk 0:00:03]} 42. Re3 {[%clk 0:00:03]}  Rg5 {[%clk 0:00:02]} 43. Kf4 {[%clk 0:00:03]}  Nd4 {[%clk 0:00:02]} 44. Rd3 {[%clk 0:00:03]}  Rg4+ {[%clk 0:00:02]} 45. Ke3 {[%clk 0:00:03]}  Re4+ {[%clk 0:00:03]} 46. Kd2 {[%clk 0:00:04]}  Kc4 {[%clk 0:00:02]} 47. Re3 {[%clk 0:00:04]}  Nc6 {[%clk 0:00:01]} 48. Rxe4+ {[%clk 0:00:04]}  fxe4 {[%clk 0:00:02]} 49. Ke3 {[%clk 0:00:05]}  Kd5 {[%clk 0:00:02]} 50. Kf4 {[%clk 0:00:06]}  Nd4 {[%clk 0:00:03]} 51. g4 {[%clk 0:00:06]}  Ke6 {[%clk 0:00:02]} 52. Kxe4 {[%clk 0:00:06]}  Ne2 {[%clk 0:00:02]} 53. f4 {[%clk 0:00:06]}  Nc3+ {[%clk 0:00:02]} 54. Kd3 {[%clk 0:00:07]}  Nb5 {[%clk 0:00:03]} 55. f5+ {[%clk 0:00:07]}  Kd5 {[%clk 0:00:03]} 56. Be7 {[%clk 0:00:06]}  Ke5 {[%clk 0:00:03]} 57. Kc4 {[%clk 0:00:07]}  Na7 {[%clk 0:00:03]} 58. Bd6+ {[%clk 0:00:06]}  Ke4 {[%clk 0:00:04]} 59. Bc7 {[%clk 0:00:05]}  Nc6 {[%clk 0:00:04]} 60. Kb5 {[%clk 0:00:05]}  Kd5 {[%clk 0:00:04]} 61. Kb6 {[%clk 0:00:05]}  Nd4 {[%clk 0:00:02]} 62. Bd8 {[%clk 0:00:05]}  Nc6 {[%clk 0:00:01]} 63. Bxf6 {[%clk 0:00:05]}  Na5 {[%clk 0:00:00]} 64. Kxa5 {[%clk 0:00:05]} 1-0


[Site "https://www.chess.com"]

[Event "Titled Tuesday Blitz May 9 Early 2023"]
[White "demon64fields"]
[Black "Carlsen, Magnus"]
[BlackFideId "1503014"]
[WhiteElo "2929"]
[BlackElo "2852"]
[Result "0-1"]
[Round "11"]
[TimeControl "180+2"]
[Date "2023.05.09"]
[WhiteClock "0:00:00"]
[BlackClock "0:00:45"]

1. Nf3 {[%clk 0:02:59]}  h6 {[%clk 0:03:00]} 2. d4 {[%clk 0:02:57]}  Nf6 {[%clk 0:02:58]} 3. g3 {[%clk 0:02:55]}  d5 {[%clk 0:02:53]} 4. Bg2 {[%clk 0:02:55]}  Bf5 {[%clk 0:02:51]} 5. O-O {[%clk 0:02:55]}  e6 {[%clk 0:02:51]} 6. c4 {[%clk 0:02:55]}  c6 {[%clk 0:02:52]} 7. Qb3 {[%clk 0:02:55]}  Qb6 {[%clk 0:02:50]} 8. Nc3 {[%clk 0:02:55]}  Nbd7 {[%clk 0:02:49]} 9. c5 {[%clk 0:02:55]}  Qa6 {[%clk 0:02:45]} 10. Bf4 {[%clk 0:02:54]}  Be7 {[%clk 0:02:43]} 11. Rfc1 {[%clk 0:02:53]}  b6 {[%clk 0:02:41]} 12. Bd6 {[%clk 0:02:44]}  bxc5 {[%clk 0:02:36]} 13. Bxe7 {[%clk 0:02:44]}  Kxe7 {[%clk 0:02:37]} 14. Na4 {[%clk 0:02:31]}  Rhb8 {[%clk 0:02:29]} 15. Qa3 {[%clk 0:02:30]}  Kf8 {[%clk 0:02:29]} 16. Nxc5 {[%clk 0:02:24]}  Qxa3 {[%clk 0:02:29]} 17. bxa3 {[%clk 0:02:25]}  Nxc5 {[%clk 0:02:28]} 18. Rxc5 {[%clk 0:02:26]}  Rb2 {[%clk 0:02:29]} 19. Rxc6 {[%clk 0:02:07]}  Rab8 {[%clk 0:02:25]} 20. Bf1 {[%clk 0:01:51]}  g5 {[%clk 0:02:24]} 21. Rc7 {[%clk 0:01:51]}  R8b7 {[%clk 0:02:24]} 22. Rac1 {[%clk 0:01:49]}  Rxc7 {[%clk 0:02:23]} 23. Rxc7 {[%clk 0:01:49]}  Rb1 {[%clk 0:02:23]} 24. Kg2 {[%clk 0:01:46]}  Be4 {[%clk 0:02:23]} 25. h3 {[%clk 0:01:43]}  h5 {[%clk 0:02:19]} 26. Kg1 {[%clk 0:01:38]}  Bxf3 {[%clk 0:02:19]} 27. exf3 {[%clk 0:01:39]}  h4 {[%clk 0:02:20]} 28. g4 {[%clk 0:01:25]}  Ng8 {[%clk 0:02:18]} 29. Rxa7 {[%clk 0:01:22]}  Ne7 {[%clk 0:02:18]} 30. Kg2 {[%clk 0:01:22]}  Ng6 {[%clk 0:02:17]} 31. Ba6 {[%clk 0:00:53]}  Nf4+ {[%clk 0:02:18]} 32. Kh2 {[%clk 0:00:53]}  Rb2 {[%clk 0:02:17]} 33. a4 {[%clk 0:00:36]}  Rxf2+ {[%clk 0:02:16]} 34. Kh1 {[%clk 0:00:37]}  Rxf3 {[%clk 0:02:15]} 35. a5 {[%clk 0:00:34]}  Rxh3+ {[%clk 0:02:14]} 36. Kg1 {[%clk 0:00:33]}  Ra3 {[%clk 0:02:15]} 37. Bb5 {[%clk 0:00:29]}  Rxa2 {[%clk 0:02:13]} 38. a6 {[%clk 0:00:29]}  Ne2+ {[%clk 0:02:00]} 39. Bxe2 {[%clk 0:00:22]}  Rxe2 {[%clk 0:02:01]} 40. Rb7 {[%clk 0:00:23]}  Ra2 {[%clk 0:02:00]} 41. a7 {[%clk 0:00:23]}  Kg7 {[%clk 0:02:00]} 42. Kh1 {[%clk 0:00:22]}  Kg6 {[%clk 0:02:00]} 43. Re7 {[%clk 0:00:17]}  Kf6 {[%clk 0:02:00]} 44. Rb7 {[%clk 0:00:17]}  Kg6 {[%clk 0:01:40]} 45. Re7 {[%clk 0:00:16]}  h3 {[%clk 0:01:39]} 46. Kg1 {[%clk 0:00:15]}  Kg7 {[%clk 0:01:32]} 47. Kh1 {[%clk 0:00:13]}  Kf6 {[%clk 0:01:28]} 48. Rb7 {[%clk 0:00:12]}  e5 {[%clk 0:01:02]} 49. Rb6+ {[%clk 0:00:12]}  Kg7 {[%clk 0:01:01]} 50. dxe5 {[%clk 0:00:13]}  Rxa7 {[%clk 0:01:01]} 51. Rd6 {[%clk 0:00:09]}  Ra4 {[%clk 0:01:01]} 52. Kh2 {[%clk 0:00:08]}  Rxg4 {[%clk 0:01:00]} 53. Rxd5 {[%clk 0:00:07]}  Rh4 {[%clk 0:00:46]} 54. Rd6 {[%clk 0:00:02]}  Re4 {[%clk 0:00:45]} 55. Rd5 {[%clk 0:00:00]}  Re3 {[%clk 0:00:45]} 0-1


[Site "https://www.chess.com"]